{"text_format":"1","workbook":"xlsx","n_sheets":4,"sheets":["Титульный","Кроссворд","Расчетный","Итоговый"],"not_rendered":{"charts":0,"images":2,"macros":1,"external_links":0,"defined_names":0,"comments":1,"pivot_tables":0},"unopened":[],"bounds":{"document_bytes":16777216,"sheet_cells":100000,"rows_first":2000,"rows_last":500,"rows_between":2000,"halvings":0,"cell_chars":16384,"cell_head_chars":4096},"cells_cut":0,"cells_raw":0,"read":"whole","date_system":"1900"}

{"sheet":"Титульный","index":0,"n_rows":36,"n_cols":2,"rows_kept":36,"cut":false,"hidden":false,"merged":[[22,8,24,13],[17,8,19,13]]}
[]
[]
[]
[]
[]
[]
[]
[]
[]
[]
[]
[]
[]
[]
[]
[]
[]
[]
[]
[]
[]
[]
[]
[]
[]
[]
[]
[]
[]
[]
[]
[]
[]
[null,"Авторы:"]
[null,"Кочубей Ирина"]
[null,"Логинова Екатерина"]

{"sheet":"Кроссворд","index":1,"n_rows":0,"n_cols":0,"rows_kept":0,"cut":false,"hidden":false,"merged":[]}

{"sheet":"Расчетный","index":2,"n_rows":19,"n_cols":4,"rows_kept":19,"cut":false,"hidden":true,"merged":[]}
["№","Ответы проверяемого","Правильные ответы","Баллы"]
[1,{"$f":"CONCATENATE(Кроссворд!R2,Кроссворд!R3,Кроссворд!R4,Кроссворд!R5)","v":""},"файл",{"$f":"IF(B2=C2,1,0)","v":0}]
[2,{"$f":"CONCATENATE(Кроссворд!Q3, Кроссворд!R3,Кроссворд!S3,Кроссворд!T3,Кроссворд!U3)","v":""},"папка",{"$f":"IF(B3=C3,1,0)","v":0}]
[3,{"$f":"CONCATENATE(Кроссворд!O4,Кроссворд!O5,Кроссворд!O6,Кроссворд!O7,Кроссворд!O8,Кроссворд!O9,Кроссворд!O10,Кроссворд!O11,Кроссворд!O12,Кроссворд!O13)","v":""},"транслятор",0]
[4,{"$f":"CONCATENATE(Кроссворд!N5,Кроссворд!O5,Кроссворд!P5,Кроссворд!Q5,Кроссворд!R5,Кроссворд!S5,Кроссворд!T5,Кроссворд!U5,Кроссворд!V5,Кроссворд!W5)","v":""},"прикладное",0]
[5,{"$f":"CONCATENATE(Кроссворд!M8,Кроссворд!N8,Кроссворд!O8,Кроссворд!P8,Кроссворд!Q8,Кроссворд!R8,Кроссворд!S8,Кроссворд!T8,Кроссворд!U8)","v":""},"системное",0]
[6,{"$f":"CONCATENATE(Кроссворд!N13,Кроссворд!O13,Кроссворд!P13,Кроссворд!Q13,Кроссворд!R13,Кроссворд!S13,Кроссворд!T13,Кроссворд!U13)","v":""},"драйверы",0]
[7,{"$f":"CONCATENATE(Кроссворд!Q10,Кроссворд!R10,Кроссворд!S10,Кроссворд!T10,Кроссворд!U10,Кроссворд!V10,Кроссворд!W10,Кроссворд!X10)","v":""},"алгоритм",0]
[8,{"$f":"CONCATENATE(Кроссворд!T10,Кроссворд!T11,Кроссворд!T12,Кроссворд!T13,Кроссворд!T14,Кроссворд!T15,Кроссворд!T16,Кроссворд!T17,Кроссворд!T18,Кроссворд!T19,Кроссворд!T20)","v":""},"оперативная",0]
[9,{"$f":"CONCATENATE(Кроссворд!Q15,Кроссворд!R15,Кроссворд!S15,Кроссворд!T15,Кроссворд!U15,Кроссворд!V15,Кроссворд!W15,Кроссворд!X15,Кроссворд!Y15)","v":""},"системная",0]
[10,{"$f":"CONCATENATE(Кроссворд!S18,Кроссворд!T18,Кроссворд!U18,Кроссворд!V18,Кроссворд!W18,Кроссворд!X18,Кроссворд!Y18,Кроссворд!Z18,Кроссворд!AA18)","v":""},"антивирус",0]
[11,{"$f":"CONCATENATE(Кроссворд!Y17,Кроссворд!Y18,Кроссворд!Y19,Кроссворд!Y20,Кроссворд!Y21,Кроссворд!Y22,Кроссворд!Y23,Кроссворд!Y24,Кроссворд!Y25)","v":""},"архиватор",0]
[12,{"$f":"CONCATENATE(Кроссворд!W24,Кроссворд!X24,Кроссворд!Y24,Кроссворд!Z24,Кроссворд!AA24,Кроссворд!AB24,Кроссворд!AC24)","v":""},"блокнот",0]
[13,{"$f":"CONCATENATE(Кроссворд!AA14,Кроссворд!AA15,Кроссворд!AA16,Кроссворд!AA17,Кроссворд!AA18)","v":""},"вирус",0]
[14,{"$f":"CONCATENATE(Кроссворд!AA17,Кроссворд!AB17,Кроссворд!AC17,Кроссворд!AD17,Кроссворд!AE17,Кроссворд!AF17,Кроссворд!AG17)","v":""},"утилиты",0]
[15,{"$f":"CONCATENATE(Кроссворд!AE11,Кроссворд!AE12,Кроссворд!AE13,Кроссворд!AE14,Кроссворд!AE15,Кроссворд!AE16,Кроссворд!AE17,Кроссворд!AE18,Кроссворд!AE19,Кроссворд!AE20,Кроссворд!AE21,Кроссворд!AE22,Кроссворд!AE23,Кроссворд!AE24)","v":""},"форматирование",0]
[null,null,"Итого:",{"$f":"SUM(D2:D16)","v":0}]
[]
[null,null,"Ваша оценка",{"$f":"IF(D17>=13,5,IF(D17>=10,4,IF(D17>=8,3,IF(D17<=8,2))))","v":2}]

{"sheet":"Итоговый","index":3,"n_rows":15,"n_cols":15,"rows_kept":15,"cut":false,"hidden":false,"merged":[[9,5,10,10],[9,14,10,14],[14,10,15,11],[14,13,15,13]]}
[]
[]
[]
[]
[]
[]
[]
[]
[]
[null,null,null,null,null,{"$f":"Титульный!I18","v":0},null,null,null,null,null,null,null,null,{"$f":"Титульный!I23","v":0}]
[]
[]
[]
[]
[null,null,null,null,null,null,null,null,null,null,"Ваша оценка:",null,null,{"$f":"Расчетный!D19","v":2}]